Cogmind - Beta 15 @@@ ROGUE MODE // 2025.07.17 @ 10:24:18 Player: beans Result: Destroyed by Y-45 Defender with Heavy Assault Rifle Performance ------------- Evolutions (1) 500 Regions Visited (3) 600 Robots Destroyed (2) 10 Value Destroyed (55) 55 Prototype IDs (1) 20 Alien Tech Used (0) 0 Bonus (200) 200 TOTAL SCORE: 1385 Bonus ------- Pacifist 200 Cogmind --------- Core Integrity 0/400 Matter 269/300 Energy 99/100 System Corruption 0% Temperature Cool (9) Movement Core (50) Location -9/Mines Parts ------- > --- POWER (1) -------- (None) > --- PROPULSION (2) --- (None) > --- UTILITY (2) ------ Weapon Shielding > --- WEAPON (4) ------- Hammer > --- INVENTORY (5) ---- (None) Peak State ------------ > --- POWER ------------ (None) > --- PROPULSION ------- (None) > --- UTILITY ---------- Experimental Sensor Array Weapon Shielding > --- WEAPON ----------- Hammer > --- INVENTORY -------- (None) [Rating: 11] Favorites ----------- Power Light Ion Engine Engine Light Ion Engine Propulsion Light Treads Treads Light Treads Utility Core Shielding Device Experimental Sensor Array Protection Core Shielding Weapon Assault Rifle Energy Gun Medium Laser Ballistic Gun Assault Rifle Impact Weapon Hammer Build | -11 -10 -9 -9 ------- Run | Yrd Mat Mat Min Slots Evolved 2 | . . 2 . Power . | . . . . Propulsion . | . . . . Utility . | . . . . Weapon 2 | . . 2 . Parts Attached 9 | 5 . . 4 Power 1 | 1 . . . Engine 1 | 1 . . . Core . | . . . . Reactor . | . . . . Propulsion 2 | 2 . . . Treads 2 | 2 . . . Leg . | . . . . Wheel . | . . . . Hover . | . . . . Flight . | . . . . Utility 3 | . . . 3 Device 1 | . . . 1 Storage . | . . . . Processor . | . . . . Hackware . | . . . . Protection 2 | . . . 2 Artifact . | . . . . Weapon 3 | 2 . . 1 Energy Gun 1 | 1 . . . Energy Cannon . | . . . . Ballistic Gun 1 | 1 . . . Ballistic Cannon . | . . . . Launcher . | . . . . Special Weapon . | . . . . Impact Weapon 1 | . . . 1 Slashing Weapon . | . . . . Piercing Weapon . | . . . . Special Melee Weapon . | . . . . Unidentified Prototypes 1 | . . . 1 Parts Lost 7 | . 5 . 2 Power 1 | . 1 . . Propulsion 2 | . 2 . . Utility 2 | . . . 2 Weapon 2 | . 2 . . Highest Loss Streak 4 | . 4 . 2 To Critical Strikes . | . . . . Average Backups . | . . . . Power . | . . . . Propulsion . | . . . . Utility . | . . . . Weapon . | . . . . Tool/Special . | . . . . Unused Backups . | . . . . Power . | . . . . Propulsion . | . . . . Utility . | . . . . Weapon . | . . . . Tool/Special . | . . . . Average Slot Usage (%) 17 | . 47 . 2 Engine 2 | . 6 . . Treads 6 | . 20 . . Energy Gun 3 | . 9 . . Ballistic Gun 3 | . 10 . . Peak Build Rating 11 | 5 5 . 11 Average Rating 1 | 3 3 . . On Entrance 1 | . 5 . . Naked Turns 347 | . 52 68 227 Heaviest Build 7 | 7 7 . 3 Greatest Support 40 | 40 40 3 3 Greatest Overweight (x) . | . . . . Average Overweight (x) . | . . . . Largest Inventory Capacity 5 | 5 5 5 5 Average Capacity 5 | 5 5 5 5 Most Carried 4 | 4 . . 1 Average Carried . | . . . . Final Capacity 5 | 5 5 5 5 Final Carried . | . . . . Class Distribution -------------------- 100% | Mutant Dominant Class ---------------- Mutant | -10/Materials Mutant | -9/Materials Mutant | -9/Mines Resources | -11 -10 -9 -9 ----------- Run | Yrd Mat Mat Min Matter Collected 174 | 102 19 . 53 Remotely . | . . . . Salvage Created 75 | . . . 75 Parts 3 | . . . 3 Haulers Intercepted . | . . . . Recyclers Shooed . | . . . . Parts Field Recycled . | . . . . Retrieved Matter . | . . . . Parts Self-Destructed . | . . . . Prevented . | . . . . Kills | -11 -10 -9 -9 ------- Run | Yrd Mat Mat Min Combat Hostiles Destroyed 2 | . . . 2 Melee 1 | . . . 1 Classes Destroyed 2 | . . . 2 Swarmer 1 | . . . 1 Sentry 1 | . . . 1 Best Kill Streak 1 | . . . 1 Combat Bots Only 1 | . . . 1 Max Kills in Single Turn 1 | . . . 1 Gunslinging . | . . . . Exploded . | . . . . Melee 1 | . . . 1 Uniques/NPCs Destroyed . | . . . . Combat | -11 -10 -9 -9 -------- Run | Yrd Mat Mat Min Hostile Shots Fired 150 | . 68 10 72 Missed 43 | . 17 5 21 Hits 107 | . 51 5 51 Projectile 107 | . 51 5 51 Critical Strikes 1 | . 1 . . Damage Taken 1324 | . 737 71 516 Core 643 | . 228 71 344 Absorbed by Shields . | . . . . Redirected to Shielding 52 | . . . 52 Core Remaining (%) 54 | 100 8 . . Volleys Fired 1 | . 1 . . Largest 1 | . 1 . . Hottest 20 | . 20 . . Shots Fired 1 | . 1 . . Gun 1 | . 1 . . Cannon . | . . . . Launcher . | . . . . Special . | . . . . Kinetic 1 | . 1 . . Thermal . | . . . . Explosive . | . . . . Electromagnetic . | . . . . Robot Hit Streak . | . . . . Robot Miss Streak . | . . . . Penetration Max . | . . . . Secondary Targets . | . . . . Shots Hit Robots 4 | . . . 4 Core Hits 4 | . . . 4 Critical Kills . | . . . . Critical Parts Destroyed 3 | . . . 3 Critical Strikes 3 | . . . 3 Smash 3 | . . . 3 Melee Attacks 4 | . . . 4 Impact 4 | . . . 4 Slashing . | . . . . Piercing . | . . . . Sneak Attacks . | . . . . Combat Hostiles . | . . . . Follow-up Attacks . | . . . . Damage Inflicted 125 | . . . 125 Guns . | . . . . Cannons . | . . . . Explosions . | . . . . Melee 75 | . . . 75 Ramming 50 | . . . 50 Kinetic . | . . . . Thermal . | . . . . Explosive . | . . . . Electromagnetic . | . . . . Impact 75 | . . . 75 Slashing . | . . . . Piercing . | . . . . Highest Corruption . | . . . . Average Corruption . | . . . . Corruption Purged . | . . . . Corruption Blocked . | . . . . Overload Shots . | . . . . Overflow Damage 52 | . . . 52 Projectiles . | . . . . Explosions . | . . . . Melee 52 | . . . 52 Knockbacks . | . . . . Impact . | . . . . Kinetic . | . . . . Secondary . | . . . . Self-Inflicted Damage 20 | . . . 20 Shots . | . . . . Rammed 16 | . . . 16 Targets Rammed 16 | . . . 16 Kicked . | . . . . Crushed . | . . . . Highest Temperature 30 | . 30 . . Average Temperature 12 | . 12 . . Received Heat Transfer 525 | . 435 27 63 Siege Activations . | . . . . Martial Activations . | . . . . Shielding Activations . | . . . . Robots Disrupted . | . . . . Combat Hostiles . | . . . . Robots Corrupted 1 | . . . 1 Combat Hostiles 1 | . . . 1 Parts Fried 1 | . . . 1 Impact Corruptions 3 | . . . 3 Robots Melted . | . . . . Combat Hostiles . | . . . . Parts Melted . | . . . . Heat Transferred . | . . . . Parts Sabotaged . | . . . . Parts Stolen . | . . . . Parts Stripped . | . . . . Power Chain Reactions . | . . . . Alert | -11 -10 -9 -9 ------- Run | Yrd Mat Mat Min Maximum Alert Level . | . . . . Low Security (%) 100 | 100 100 100 100 Level 1 . | . . . . Level 2 . | . . . . Level 3 . | . . . . Level 4 . | . . . . Level 5 . | . . . . High Security . | . . . . Max Security . | . . . . Peak Influence 90 | . 90 29 50 Initial 29 | . . 29 . Average 8 | . 11 16 5 Influence Increases 190 | . 90 . 100 Destroy 0b10 Robot/C 40 | . . . 40 Lose Combat Pursuer 150 | . 90 . 60 Influence Decreases 140 | . 20 70 50 Entered New Map 41 | . . 41 . Time Decay 79 | . 20 29 30 Lost Part 20 | . . . 20 Squads Dispatched 1 | . 1 . . Investigation . | . . . . Extermination . | . . . . Reinforcement 1 | . 1 . . Assault . | . . . . Garrison . | . . . . Intercept . | . . . . Searches Triggered . | . . . . Construction Impeded . | . . . . Haulers Reinforced . | . . . . Active Scanning Responses . | . . . . Cargo Convoy Interrupts . | . . . . Stealth | -11 -10 -9 -9 --------- Run | Yrd Mat Mat Min Distress Signals 2 | . 2 . . Communications Jammed . | . . . . Distress Signals . | . . . . Times Spotted 22 | . 11 1 10 Peak Tracking Total 9 | . 9 1 5 Tactical Retreats 4 | . 1 . 3 Traps | -11 -10 -9 -9 ------- Run | Yrd Mat Mat Min Traps Triggered . | . . . . Indirectly . | . . . . Trap Hack Attempts . | . . . . Triggered . | . . . . Disarmed . | . . . . Reprogrammed . | . . . . Reused . | . . . . Traps Extracted . | . . . . Installed . | . . . . Triggered . | . . . . Machines | -11 -10 -9 -9 ---------- Run | Yrd Mat Mat Min Machines Disabled . | . . . . Max in Single Turn . | . . . . Machines Repaired . | . . . . Machines Dismantled . | . . . . Machines Sabotaged . | . . . . Overloaded Fab Kills . | . . . . Hacking | -11 -10 -9 -9 --------- Run | Yrd Mat Mat Min Machines Accessed 2 | . 1 1 . Terminals 1 | . 1 . . Fabricators . | . . . . Repair Stations . | . . . . Recycling Units 1 | . . 1 . Scanalyzers . | . . . . Garrison Access . | . . . . Total Hacks 6 | . 2 4 . Successful 2 | . 2 . . Failed 4 | . . 4 . Catastrophic . | . . . . Database Lockouts . | . . . . Manual . | . . . . Terminals 2 | . 2 . . Fabricators . | . . . . Repair Stations . | . . . . Recycling Units 4 | . . 4 . Scanalyzers . | . . . . Garrison Access . | . . . . Terminal Hacks 2 | . 2 . . Alert Level 2 | . 2 . . Fabricator Hacks . | . . . . Repair Station Hacks . | . . . . Recycling Unit Hacks . | . . . . Scanalyzer . | . . . . Garrison Access Hacks . | . . . . Unauthorized Hacks . | . . . . Terminals . | . . . . Fabricators . | . . . . Repair Stations . | . . . . Recycling Units . | . . . . Scanalyzers . | . . . . Garrison Access . | . . . . Data Cores Recovered . | . . . . Used . | . . . . Hacking Detections 1 | . . 1 . Full Trace Events 1 | . . 1 . Feedback Events . | . . . . Feedback Blocked . | . . . . Robot Schematics Acquired . | . . . . Robots Built . | . . . . Authchips . | . . . . Time . | . . . . Total Robot Build Rating . | . . . . Part Schematics Acquired . | . . . . Parts Built . | . . . . Authchips . | . . . . Time . | . . . . Total Part Build Rating . | . . . . Parts Repaired . | . . . . Time . | . . . . Parts Recycled . | . . . . Recycled Matter . | . . . . Retrieved Matter . | . . . . Retrieved Components . | . . . . Parts Scanalyzed . | . . . . Part Schematics Acquired . | . . . . Parts Damaged . | . . . . Bothacking | -11 -10 -9 -9 ------------ Run | Yrd Mat Mat Min Used RIF Installer . | . . . . Robots Hacked . | . . . . Non-combat . | . . . . Combat . | . . . . Robot Hacks Applied . | . . . . Relay Couplers Released . | . . . . Fabnet Peak Effective % . | . . . . Robots Rewired . | . . . . Allies Hacked . | . . . . Hacks Repelled . | . . . . Allies | -11 -10 -9 -9 -------- Run | Yrd Mat Mat Min Total Allies . | . . . . Largest Group . | . . . . Highest-Rated Group . | . . . . Highest-Rated Ally . | . . . . Total Orders . | . . . . Ally Attacks . | . . . . Total Damage . | . . . . Kills . | . . . . Allies Corrupted . | . . . . Allies Melted . | . . . . Intel | -11 -10 -9 -9 ------- Run | Yrd Mat Mat Min Active Infowar (turns) 24 | . . . 24 Sensors 24 | . . . 24 Robot Analysis Total . | . . . . Derelict Logs Recovered . | . . . . Drone Launches . | . . . . Drone Recoveries . | . . . . Exploration | -11 -10 -9 -9 ------------- Run | Yrd Mat Mat Min Turns Passed 584 | 45 182 68 289 Spaces Moved 569 | 40 183 136 210 Core 475 | 25 104 136 210 Treads 94 | 15 79 . . Legs . | . . . . Wheels . | . . . . Hover . | . . . . Flight . | . . . . Fastest Speed 50 | 50 50 50 50 Average Speed 68 | 91 97 50 50 Slowest Speed 160 | 160 160 50 50 Overloaded Moves . | . . . . Propulsion Burnouts . | . . . . Robots Hopped . | . . . . Potential Cave-ins . | . . . . Cave-ins Triggered . | . . . . Exploration Rate (%) 26 | 4 36 16 49 Regions Visited 3 Branch Regions 1 Pre-discovered Areas . | . . . . Known Exits Taken . | . . . . Unknown Exits Taken 3 | 1 1 1 . Scrap Searched 1 | . . . 1 Spaces Dug . | . . . . Terrain Destroyed . | . . . . Melee . | . . . . Projectile . | . . . . AOE . | . . . . Terrain Rammed . | . . . . Walls Destroyed . | . . . . Machines Disabled . | . . . . Actions | -11 -10 -9 -9 --------- Run | Yrd Mat Mat Min Total 756 | 49 185 135 387 Wait 151 | . 2 . 149 Move 566 | 39 182 135 210 Hop . | . . . . Pick Up 9 | 5 . . 4 Fast Attach . | . . . . Attach 9 | 5 . . 4 Detach . | . . . . Swap . | . . . . Drop . | . . . . Fire 1 | . 1 . . Melee 4 | . . . 4 Ram 16 | . . . 16 Kick . | . . . . Crush . | . . . . Escape Stasis . | . . . . Rewire . | . . . . Trap . | . . . . Miscellaneous . | . . . . Route ------- -11/Scrapyard -10/Materials -9/Materials -9/Mines History --------- Turn | Location | Event 3 | -11/Scrapyard | Discovered new exit (range 15) 46 | -11/Scrapyard | Entered Materials 173 | -10/Materials | Core integrity fell below 50% 178 | -10/Materials | Core integrity fell below 20% 207 | -10/Materials | Lost 4 parts (2n2w) 214 | -10/Materials | Discovered new exit (range 11) 228 | -10/Materials | Entered another Materials area 228 | -9/Materials | Evolved 2 slots: Weapon x2 288 | -9/Materials | Discovered new exit (range 13) 296 | -9/Materials | Entered Mines 313 | -9/Mines | Build established: Mutant 546 | -9/Mines | Core integrity fell below 50% 550 | -9/Mines | Found a damaged Exp. Sensor Array with a note attached 551 | -9/Mines | Found Prototype Device 552 | -9/Mines | Identified Exp. Sensor Array 580 | -9/Mines | Core integrity fell below 20% 585 | -9/Mines | Destroyed by Y-45 Defender with Heavy Assault Rifle Last Messages --------------- Identified Exp. Sensor Array. Core Shielding destroyed. Acquired Hammer. Acquired Weapon Shielding. Machine disabled. Exp. Sensor Array destroyed. Y-45 Defender suffers critical hit (Smash). Destroyed Heat Sink. Y-45 Defender system corrupted by crushing effect. Y-45 Defender suffers critical hit (Smash). Destroyed Heat Sink. Y-45 Defender system corrupted by crushing effect. Y-45 Defender suffers critical hit (Smash). Destroyed Imp. Ion Engine. Y-45 Defender system corrupted by crushing effect. Y-45 Defender system terminally corrupted. Beam Rifle fried. Map ----- +----------------------------------------------------+ | | | | | | | | | | | | | | | | | | | | | | | | | | | | | ????????????????????????????????? | | ????????????????????????????????? | | ????????????????????????????????? | | ??????????????????##????????????? | | ?????????????????# ##???????????? | | ????????????????# ##????? ????? | | ??????????????## ##### ?????? | | ???????######## ??????? | | ??????##" ## ??????? | | ??????#""Y # ##????????? | | ??????#!! s # ##???????? | | ??????# @ s # #???????? | | ??????#" % # # #???????? | | ??????##" ## #???????? | | ???????###### ##??????# | | ????????????# #?# | | ????????????## ## ##### #?# | | ?????????????### #?? #???????# | | ???????????????# #??? #??????? | | ???????????????# #????##???????# | | ???????????????# #????????????## | | ???????????????# #####???????## | | ???????????????# #????#### | | ???????????????# #???## | | ???????????????#### #???# | | ??????????????????# #???# | | ??????????????????# ##### | | ???????????????#### | | ????????# | | ??????????################ # | | ?????????????????????????## # | | ??????????????????????????## # | | ???????????????????????????## | | ????????????????????????????# | | ????????????????????????????## # | | ?????????????????????????????#### | +----------------------------------------------------+ Best States ------------- Heat Dissipation 28 Energy Generation 10 Energy Capacity 125 Matter Stores 289 Matter Capacity 300 Sight Range 16 Robot Scan Range 20 Terrain Scan Density 10 Core Shielding 20 Weapon Shielding 33 Evasion (%) 50 Recoil Reduction 2 Item Schematics ----------------- None Robot Schematics ------------------ None Fabricated ------------ Nothing Repaired ---------- Nothing Alien Tech Used ----------------- None Achievements -------------- None Challenges ------------ None Game ------ Seed BlanketBiocellFirepult Manual? 0 Play Time 00:13:38 Cumulative 57.1 hours Start 2025.07.17 @ 10:10:51 End 2025.07.17 @ 10:24:18 Sessions 4 Manual Loads 0 Difficulty Rogue Special Mode None Game No. 248 Rogue 248 Adventurer 0 Explorer 0 Win Type - Total 0 Types 0/0/0/0/0/0/0/0/0/0 Lore% 37 Gallery% 29 Achievement% 24 Wizard Run 0 Options --------- Layout 2 ASCII 0 Keyboard 0 Movement Mouse Keybinds 0 Fullscreen 1 Font 24/Terminus Map View 50x44 Zoom Use 4% Tactical HUD 0 Map Filters NONE Filters NONE Steam 1 RUN: 527b6ba4-d04f-48b4-893f-b08a7de3300f